fUSD/lending_fUSD_20240301
["ID","MTS","AMOUNT","RATE_DAILY","PERIOD"]
[316022540,1709327446535,-500.0,0.00022027,2]
[316022541,1709327446545,-500.0,0.00022027,2]
[316022542,1709327446557,-246.82,0.00022027,2]
[316022543,1709327446567,-500.0,0.00022027,2]
[316022544,1709327446577,-500.0,0.00022027,2]
[316022545,1709327446587,-500.0,0.00022027,2]
[316022546,1709327446597,-521.07,0.00022027,2]
[316022547,1709327446606,-500.0,0.00022027,2]
[316022548,1709327446616,-500.0,0.00022027,2]
[316022549,1709327446626,-500.0,0.00022027,2]
[316022550,1709327446635,-500.0,0.00022027,2]
[316022551,1709327446646,-500.0,0.00022027,2]
[316022552,1709327446656,-500.0,0.00022027,2]
[316022553,1709327446666,-500.0,0.00022027,2]
[316022554,1709327446676,-500.0,0.00022027,2]
[316022555,1709327446686,-500.0,0.00022027,2]
[316022556,1709327446696,-500.0,0.00022027,2]
[316022557,1709327446713,-790.06,0.00022027,2]
[316022558,1709327446723,-554.47,0.00022027,2]
[316022559,1709327446733,-500.0,0.00022027,2]
[316022560,1709327446743,-500.0,0.00022027,2]
[316022561,1709327446753,-500.0,0.00022027,2]
[316022562,1709327446763,-500.0,0.00022027,2]
[316022563,1709327446772,-500.0,0.00022027,2]
[316022564,1709327446783,-500.0,0.00022027,2]
[316022565,1709327446793,-500.0,0.00022027,2]
[316022566,1709327446802,-500.0,0.00022027,2]
[316022567,1709327446815,-620.34,0.00022027,2]
[316022568,1709327446825,-500.0,0.00022027,2]
[316022569,1709327446834,-500.0,0.00022027,2]
[316022570,1709327446845,-500.0,0.00022027,2]
[316022571,1709327446855,-500.0,0.00022027,2]
[316022572,1709327446865,-945.1,0.00022027,2]
[316022573,1709327446874,-500.0,0.00022027,2]
[316022574,1709327446884,-500.0,0.00022027,2]
[316022575,1709327446894,-500.0,0.00022027,2]
[316022576,1709327446903,-214.61966704,0.00022027,2]
[316022577,1709327446913,-500.0,0.00022027,2]
[316022578,1709327446923,-500.0,0.00022027,2]
[316022579,1709327446932,-500.0,0.00022027,2]
[316022580,1709327446942,-500.0,0.00022027,2]
[316022581,1709327446951,-500.0,0.00022027,2]
[316022582,1709327446961,-500.0,0.00022027,2]
[316022583,1709327446970,-500.0,0.00022027,2]
[316022584,1709327446979,-500.0,0.00022027,2]
[316022585,1709327446989,-500.0,0.00022027,2]
[316022586,1709327446999,-500.0,0.00022027,2]
[316022587,1709327447010,-507.13,0.00022027,2]
[316022588,1709327447022,-575.93936728,0.00022027,2]
[316022589,1709327447032,-500.0,0.00022027,2]
[316022590,1709327447041,-585.61,0.00022027,2]
[316022591,1709327447051,-506.2,0.00022027,2]
[316022592,1709327447063,-500.0,0.00022027,2]
[316022593,1709327447072,-500.0,0.00022027,2]
[316022594,1709327447082,-500.0,0.00022027,2]
[316022595,1709327447091,-500.0,0.00022027,2]
[316022596,1709327447100,-500.0,0.00022027,2]
[316022597,1709327447110,-500.0,0.00022027,2]
[316022598,1709327447119,-500.0,0.00022027,2]
[316022599,1709327447154,-500.0,0.00022027,2]
[316022600,1709327447164,-500.0,0.00022027,2]
[316022601,1709327447173,-655.68,0.00022027,2]
[316022602,1709327447183,-500.0,0.00022027,2]
[316022603,1709327447194,-500.0,0.00022027,2]
[316022604,1709327447204,-500.0,0.00022027,2]
[316022605,1709327447214,-500.0,0.00022027,2]
[316022606,1709327447224,-500.0,0.00022027,2]
[316022607,1709327447233,-500.0,0.00022027,2]
[316022608,1709327447243,-611.07,0.00022027,2]
[316022609,1709327447253,-500.0,0.00022027,2]
[316022610,1709327447262,-500.0,0.00022027,2]
[316022611,1709327447271,-500.0,0.00022027,2]
[316022612,1709327447281,-345.83,0.00022027,2]
[316022613,1709327447291,-583.77,0.00022027,2]
[316022614,1709327447301,-500.0,0.00022027,2]
[316022615,1709327447312,-928.54,0.00022027,2]
[316022616,1709327447323,-549.82,0.00022027,2]
[316022617,1709327447333,-500.0,0.00022027,2]
[316022618,1709327447342,-500.0,0.00022027,2]
[316022619,1709327447351,-500.0,0.00022027,2]
[316022620,1709327447362,-500.0,0.00022027,2]
[316022621,1709327447371,-500.0,0.00022027,2]
[316022622,1709327447381,-500.0,0.00022027,2]
[316022623,1709327447390,-512.55584735,0.00022027,2]
[316022624,1709327447401,-500.0,0.00022027,2]
[316022625,1709327447410,-500.0,0.00022027,2]
[316022626,1709327447420,-500.0,0.00022027,2]
[316022627,1709327447429,-409.88721473,0.00022027,2]
[316022628,1709327447440,-500.0,0.00022027,2]
[316022629,1709327447450,-315.47099271,0.00022027,2]
[316022630,1709327447461,-500.0,0.00022027,2]
[316022631,1709327447472,-500.0,0.00022027,2]
[316022632,1709327447482,-509.42031207,0.00022027,2]
[316022633,1709327447493,-553.76,0.00022027,2]
[316022634,1709327447503,-500.0,0.00022027,2]
[316022635,1709327447513,-500.0,0.00022027,2]
[316022636,1709327447523,-500.0,0.00022027,2]
[316022637,1709327447533,-500.0,0.00022027,2]
[316022638,1709327447542,-537.75,0.00022027,2]
[316022639,1709327447553,-585.12,0.00022027,2]
[316022640,1709327447565,-740.69,0.00022027,2]
[316022641,1709327447575,-500.0,0.00022027,2]
[316022642,1709327447584,-725.29,0.00022027,2]
[316022643,1709327447594,-500.0,0.00022027,2]
[316022644,1709327447605,-500.0,0.00022027,2]
[316022645,1709327447614,-500.0,0.00022027,2]
[316022646,1709327447624,-500.0,0.00022027,2]
[316022647,1709327447633,-500.0,0.00022027,2]
[316022648,1709327447643,-500.0,0.00022027,2]
[316022649,1709327447653,-500.0,0.00022027,2]
[316022650,1709327447664,-500.0,0.00022027,2]
[316022651,1709327447673,-500.0,0.00022027,2]
[316022652,1709327447683,-500.0,0.00022027,2]
[316022653,1709327447692,-500.0,0.00022027,2]
[316022654,1709327447705,-500.0,0.00022027,2]
[316022655,1709327447714,-500.0,0.00022027,2]
[316022656,1709327447725,-500.0,0.00022027,2]
[316022657,1709327447736,-500.0,0.00022027,2]
[316022658,1709327447747,-500.0,0.00022027,2]
[316022659,1709327447756,-324.66490422,0.00022027,2]
[316022660,1709327447766,-500.0,0.00022027,2]
[316022661,1709327447775,-500.0,0.00022027,2]
[316022662,1709327447785,-500.0,0.00022027,2]
[316022663,1709327447795,-567.26,0.00022027,2]
[316022664,1709327447805,-500.0,0.00022027,2]
[316022665,1709327447818,-500.0,0.00022027,2]
[316022666,1709327447828,-1074.01,0.00022027,2]
[316022667,1709327447838,-500.0,0.00022027,2]
[316022668,1709327447848,-500.0,0.00022027,2]
[316022669,1709327447857,-500.0,0.00022027,2]
[316022670,1709327447866,-500.0,0.00022027,2]
[316022671,1709327447876,-500.0,0.00022027,2]
[316022672,1709327447886,-724.85,0.00022027,2]
[316022673,1709327447896,-500.0,0.00022027,2]
[316022674,1709327447905,-500.0,0.00022027,2]
[316022675,1709327447915,-500.0,0.00022027,2]
[316022676,1709327447925,-500.0,0.00022027,2]
[316022677,1709327447934,-500.0,0.00022027,2]
[316022678,1709327447944,-500.0,0.00022027,2]
[316022679,1709327447953,-500.0,0.00022027,2]
[316022680,1709327447963,-500.0,0.00022027,2]
[316022681,1709327447972,-500.0,0.00022027,2]
[316022682,1709327447982,-500.0,0.00022027,2]
[316022683,1709327447992,-500.0,0.00022027,2]
[316022684,1709327448002,-500.0,0.00022027,2]
[316022685,1709327448011,-500.0,0.00022027,2]
[316022686,1709327448021,-500.0,0.00022027,2]
[316022687,1709327448030,-500.0,0.00022027,2]
[316022688,1709327448040,-500.0,0.00022027,2]
[316022689,1709327448049,-500.0,0.00022027,2]
[316022690,1709327448059,-500.0,0.00022027,2]
[316022691,1709327448068,-500.0,0.00022027,2]
[316022692,1709327448077,-500.0,0.00022027,2]
[316022693,1709327448086,-500.0,0.00022027,2]
[316022694,1709327448095,-661.14,0.00022027,2]
[316022695,1709327448105,-500.0,0.00022027,2]
[316022696,1709327448114,-500.0,0.00022027,2]
[316022697,1709327448124,-677.52,0.00022027,2]
[316022698,1709327448134,-500.0,0.00022027,2]
[316022699,1709327448144,-500.0,0.00022027,2]
[316022700,1709327448153,-500.0,0.00022027,2]
[316022701,1709327448163,-500.0,0.00022027,2]
[316022702,1709327448172,-500.0,0.00022027,2]
[316022703,1709327448182,-500.0,0.00022027,2]
[316022704,1709327448191,-500.0,0.00022027,2]
[316022705,1709327448201,-500.0,0.00022027,2]
[316022706,1709327448210,-500.0,0.00022027,2]
[316022707,1709327448220,-500.0,0.00022027,2]
[316022708,1709327448230,-500.0,0.00022027,2]
[316022709,1709327448239,-150.0,0.00022027,2]
[316022710,1709327448248,-500.0,0.00022027,2]
[316022711,1709327448258,-500.0,0.00022027,2]
[316022712,1709327448268,-886.35,0.00022027,2]
[316022713,1709327448278,-500.0,0.00022027,2]
[316022714,1709327448288,-500.0,0.00022027,2]
[316022715,1709327448297,-621.47,0.00022027,2]
[316022716,1709327448308,-500.0,0.00022027,2]
[316022717,1709327448386,-500.0,0.00022027,2]
[316022718,1709327448395,-500.0,0.00022027,2]
[316022719,1709327448405,-500.0,0.00022027,2]
[316022720,1709327448414,-463.11,0.00022027,2]
[316022721,1709327448423,-295.14640702,0.00022027,2]
[316022722,1709327448433,-500.0,0.00022027,2]
[316022723,1709327448442,-500.0,0.00022027,2]
[316022724,1709327448452,-500.0,0.00022027,2]
[316022725,1709327448461,-218.60334005,0.00022027,2]
[316022726,1709327448471,-500.0,0.00022027,2]
[316022727,1709327448481,-500.0,0.00022027,2]
[316022728,1709327448491,-626.28,0.00022027,2]
[316022729,1709327448501,-500.0,0.00022027,2]
[316022730,1709327448511,-814.38,0.00022027,2]
[316022731,1709327448520,-500.0,0.00022027,2]
[316022732,1709327448530,-500.0,0.00022027,2]
[316022733,1709327448539,-196.44468159,0.00022027,2]
[316022734,1709327448549,-500.0,0.00022027,2]
[316022735,1709327448559,-500.0,0.00022027,2]
[316022736,1709327448569,-500.0,0.00022027,2]
[316022737,1709327448578,-500.0,0.00022027,2]
[316022738,1709327448588,-783.23,0.00022027,2]
[316022739,1709327448598,-215.16784733,0.00022027,2]
[316022740,1709327448608,-500.0,0.00022027,2]
[316022741,1709327448617,-500.0,0.00022027,2]
[316022742,1709327448627,-500.0,0.00022027,2]
[316022743,1709327448637,-645.41,0.00022027,2]
[316022744,1709327448647,-517.08717522,0.00022027,2]
[316022745,1709327448656,-500.0,0.00022027,2]
[316022746,1709327448666,-500.0,0.00022027,2]
[316022747,1709327448676,-610.08,0.00022027,2]
[316022748,1709327448685,-500.0,0.00022027,2]
[316022749,1709327448695,-500.0,0.00022027,2]
[316022750,1709327448707,-500.0,0.00022027,2]
[316022751,1709327448717,-500.0,0.00022027,2]
[316022752,1709327448726,-500.0,0.00022027,2]
[316022753,1709327448735,-500.0,0.00022027,2]
[316022754,1709327448746,-500.0,0.00022027,2]
[316022755,1709327448755,-1032.68,0.00022027,2]
[316022756,1709327448765,-500.0,0.00022027,2]
[316022757,1709327448774,-500.0,0.00022027,2]
[316022758,1709327448785,-468.42,0.00022027,2]
[316022759,1709327448794,-500.0,0.00022027,2]
[316022760,1709327448803,-500.0,0.00022027,2]
[316022761,1709327448814,-500.0,0.00022027,2]
[316022762,1709327448823,-500.0,0.00022027,2]
[316022763,1709327448832,-500.0,0.00022027,2]
[316022764,1709327448841,-979.52,0.00022027,2]
[316022765,1709327448851,-500.0,0.00022027,2]
[316022766,1709327448860,-500.0,0.00022027,2]
[316022767,1709327448869,-500.0,0.00022027,2]
[316022768,1709327448878,-500.0,0.00022027,2]
[316022769,1709327448887,-500.0,0.00022027,2]
[316022770,1709327448896,-595.94,0.00022027,2]
[316022771,1709327448905,-500.0,0.00022027,2]
[316022772,1709327448914,-500.0,0.00022027,2]
[316022773,1709327448923,-500.0,0.00022027,2]
[316022774,1709327448933,-500.0,0.00022027,2]
[316022775,1709327448941,-648.73232968,0.00022027,2]
[316022776,1709327448950,-500.0,0.00022027,2]
[316022777,1709327448959,-500.0,0.00022027,2]
[316022778,1709327448968,-353.31268309,0.00022027,2]
[316022779,1709327448978,-500.0,0.00022027,2]
[316022780,1709327448987,-500.0,0.00022027,2]
[316022781,1709327448997,-500.0,0.00022027,2]
[316022782,1709327449006,-500.0,0.00022027,2]
[316022783,1709327449015,-500.0,0.00022027,2]
[316022784,1709327449024,-500.0,0.00022027,2]
[316022785,1709327449033,-500.0,0.00022027,2]
[316022786,1709327449042,-694.02,0.00022027,2]
[316022787,1709327449052,-500.0,0.00022027,2]
[316022788,1709327449063,-730.54,0.00022027,2]
[316022789,1709327449072,-500.0,0.00022027,2]
[316022790,1709327449082,-561.67209159,0.00022027,2]
[316022791,1709327449091,-500.0,0.00022027,2]
[316022792,1709327449100,-500.0,0.00022027,2]
[316022793,1709327449109,-500.0,0.00022027,2]
[316022794,1709327449118,-500.0,0.00022027,2]
[316022795,1709327449127,-500.0,0.00022027,2]
[316022796,1709327449137,-1631.05,0.00022027,2]
[316022797,1709327449146,-500.0,0.00022027,2]
[316022798,1709327449155,-500.0,0.00022027,2]
[316022799,1709327449165,-500.0,0.00022027,2]
[316022800,1709327449174,-550.34823905,0.00022027,2]
[316022801,1709327449184,-500.0,0.00022027,2]
[316022802,1709327449194,-465.41,0.00022027,2]
[316022803,1709327449204,-500.0,0.00022027,2]
[316022804,1709327449215,-427.02,0.00022027,2]
[316022805,1709327449226,-500.0,0.00022027,2]
[316022806,1709327449235,-579.96,0.00022027,2]
[316022807,1709327449245,-500.0,0.00022027,2]
[316022808,1709327449255,-623.07,0.00022027,2]
[316022809,1709327449265,-635.47,0.00022027,2]
[316022810,1709327449274,-500.0,0.00022027,2]
[316022811,1709327449283,-570.22,0.00022027,2]
[316022812,1709327449294,-1967.89,0.00022027,2]
[316022813,1709327449304,-790.48,0.00022027,2]
[316022814,1709327449314,-500.0,0.00022027,2]
[316022815,1709327449323,-500.0,0.00022027,2]
[316022816,1709327449333,-500.0,0.00022027,2]
[316022817,1709327449342,-3840.77,0.00022027,2]
[316022818,1709327449352,-500.0,0.00022027,2]
[316022819,1709327449361,-500.0,0.00022027,2]
[316022820,1709327449370,-497.13757053,0.00022027,2]
[316022821,1709327449379,-500.0,0.00022027,2]
[316022822,1709327449388,-1023.93,0.00022027,2]
[316022823,1709327449397,-709.22,0.00022027,2]
[316022824,1709327449406,-500.0,0.00022027,2]
[316022825,1709327449415,-500.0,0.00022027,2]
[316022826,1709327449424,-674.18,0.00022027,2]
[316022827,1709327449433,-500.0,0.00022027,2]
[316022828,1709327449443,-802.02,0.00022027,2]
[316022829,1709327449452,-758.5,0.00022027,2]
[316022830,1709327449462,-500.0,0.00022027,2]
[316022831,1709327449471,-500.0,0.00022027,2]
[316022832,1709327449481,-2460.18,0.00022027,2]
[316022833,1709327449492,-500.0,0.00022027,2]
[316022834,1709327449502,-500.0,0.00022027,2]
[316022835,1709327449512,-500.0,0.00022027,2]
[316022836,1709327449523,-500.0,0.00022027,2]
[316022837,1709327449533,-874.36,0.00022027,2]
[316022838,1709327449543,-5095.22,0.00022027,2]
[316022839,1709327449552,-619.7,0.00022027,2]
[316022840,1709327449564,-4543.29,0.00022027,2]
[316022841,1709327449574,-500.0,0.00022027,2]
[316022842,1709327449584,-500.0,0.00022027,2]
[316022843,1709327449594,-500.0,0.00022027,2]
[316022844,1709327449604,-2791.17,0.00022027,2]
[316022845,1709327449614,-500.0,0.00022027,2]
[316022846,1709327449623,-500.0,0.00022027,2]
[316022847,1709327449633,-13075.41,0.00022027,2]
[316022848,1709327449642,-1086.33,0.00022027,2]
[316022849,1709327449652,-500.0,0.00022027,2]
[316022850,1709327449661,-697.61,0.00022027,2]
[316022851,1709327449671,-500.0,0.00022027,2]
[316022852,1709327449680,-2372.71,0.00022027,2]
[316022853,1709327449689,-531.57,0.00022027,2]
[316022854,1709327449699,-2238.29,0.00022027,2]
[316022855,1709327449713,-500.0,0.00022027,2]
[316022856,1709327449722,-500.0,0.00022027,2]
[316022857,1709327449733,-3273.4,0.00022027,2]
[316022858,1709327449743,-500.0,0.00022027,2]
[316022859,1709327449752,-3863.53,0.00022027,2]
[316022860,1709327449762,-13361.28,0.00022027,2]
[316022861,1709327449772,-500.0,0.00022027,2]
[316022862,1709327449781,-1208.49,0.00022027,2]
[316022863,1709327449790,-500.0,0.00022027,2]
[316022864,1709327449802,-4739.16,0.00022027,2]
[316022865,1709327449814,-1157.09,0.00022027,2]
[316022866,1709327449824,-15192.43,0.00022027,2]
[316022867,1709327449833,-500.0,0.00022027,2]
[316022868,1709327449842,-1083.08,0.00022027,2]
[316022869,1709327449851,-846.42,0.00022027,2]
[316022870,1709327449860,-500.0,0.00022027,2]
[316022871,1709327449869,-500.0,0.00022027,2]
[316022872,1709327449880,-500.0,0.00022027,2]
[316022873,1709327449889,-500.0,0.00022027,2]
[316022874,1709327449899,-836.05,0.00022027,2]
[316022875,1709327449909,-500.0,0.00022027,2]
[316022876,1709327449919,-500.0,0.00022027,2]
[316022877,1709327449929,-3538.29,0.00022027,2]
[316022878,1709327449938,-1788.19,0.00022027,2]
[316022879,1709327449947,-1380.52,0.00022027,2]
[316022880,1709327449957,-570.9,0.00022027,2]
[316022881,1709327449966,-3365.09,0.00022027,2]
[316022882,1709327449976,-1080.69,0.00022027,2]
[316022883,1709327449985,-1084.53,0.00022027,2]
[316022884,1709327449994,-500.0,0.00022027,2]
[316022885,1709327450003,-902.73,0.00022027,2]
[316022886,1709327450012,-1536.91,0.00022027,2]
[316022887,1709327450022,-7184.22,0.00022027,2]
[316022888,1709327450031,-499.32794901,0.00022027,2]
[316022889,1709327450042,-712.93,0.00022027,2]
[316022890,1709327450051,-500.0,0.00022027,2]
[316022891,1709327450062,-2694.61,0.00022027,2]
[316022892,1709327450072,-500.0,0.00022027,2]
[316022893,1709327450082,-500.0,0.00022027,2]
[316022894,1709327450092,-500.0,0.00022027,2]
[316022895,1709327450102,-527.47,0.00022027,2]
[316022896,1709327450112,-3160.24,0.00022027,2]
[316022897,1709327450122,-500.0,0.00022027,2]
[316022898,1709327450132,-500.0,0.00022027,2]
[316022899,1709327450141,-2910.19,0.00022027,2]
[316022900,1709327450150,-404.60120815,0.00022027,2]
[316022901,1709327450159,-907.07,0.00022027,2]
[316022902,1709327450168,-1012.0,0.00022027,2]
[316022903,1709327450177,-1643.86,0.00022027,2]
[316022904,1709327450186,-518.91,0.00022027,2]
[316022905,1709327450195,-500.0,0.00022027,2]
[316022906,1709327450204,-406.88522363,0.00022027,2]
[316022907,1709327450213,-2423.72,0.00022027,2]
[316022908,1709327450223,-500.0,0.00022027,2]
[316022909,1709327450231,-729.11,0.00022027,2]
[316022910,1709327450240,-500.0,0.00022027,2]
[316022911,1709327450250,-883.75,0.00022027,2]
[316022912,1709327450259,-509.83,0.00022027,2]
[316022913,1709327450268,-500.0,0.00022027,2]
[316022914,1709327450278,-153.52,0.00022027,2]
[316022915,1709327450286,-1378.45,0.00022027,2]
[316022916,1709327450296,-589.53,0.00022027,2]
[316022917,1709327450305,-500.0,0.00022027,2]
[316022918,1709327450316,-500.0,0.00022027,2]
[316022919,1709327450325,-500.0,0.00022027,2]
[316022920,1709327450334,-500.0,0.00022027,2]
[316022921,1709327450343,-500.0,0.00022027,2]
[316022922,1709327450352,-553.48,0.00022027,2]
[316022923,1709327450361,-500.0,0.00022027,2]
[316022924,1709327450370,-500.0,0.00022027,2]
[316022925,1709327450379,-735.21,0.00022027,2]
[316022926,1709327450388,-711.66,0.00022027,2]
[316022927,1709327450397,-500.0,0.00022027,2]
[316022928,1709327450406,-697.75,0.00022027,2]
[316022929,1709327450415,-500.0,0.00022027,2]
[316022930,1709327450425,-1628.97,0.00022027,2]
[316022931,1709327450435,-500.0,0.00022027,2]
[316022932,1709327450444,-746.85,0.00022027,2]
[316022933,1709327450454,-500.0,0.00022027,2]
[316022934,1709327450464,-500.0,0.00022027,2]
[316022935,1709327450473,-500.0,0.00022027,2]
[316022936,1709327450483,-500.0,0.00022027,2]
[316022937,1709327450494,-703.92,0.00022027,2]
[316022938,1709327450503,-500.0,0.00022027,2]
[316022939,1709327450513,-766.47,0.00022027,2]
[316022940,1709327450524,-583.31,0.00022027,2]
[316022941,1709327450535,-500.0,0.00022027,2]
[316022942,1709327450545,-500.0,0.00022027,2]
[316022943,1709327450556,-500.0,0.00022027,2]
[316022944,1709327450566,-500.0,0.00022027,2]
[316022945,1709327450576,-932.22,0.00022027,2]
[316022946,1709327450586,-500.0,0.00022027,2]
[316022947,1709327450596,-894.62,0.00022027,2]
[316022948,1709327450607,-1880.26,0.00022027,2]
[316022949,1709327450617,-501.39947847,0.00022027,2]
[316022950,1709327450626,-500.0,0.00022027,2]
[316022951,1709327450637,-1015.13,0.00022027,2]
[316022952,1709327450647,-729.79,0.00022027,2]
[316022953,1709327450658,-500.0,0.00022027,2]
[316022954,1709327450668,-500.0,0.00022027,2]
[316022955,1709327450678,-500.0,0.00022027,2]
[316022956,1709327450689,-500.0,0.00022027,2]
[316022957,1709327450700,-1414.53,0.00022027,2]
[316022958,1709327450718,-500.0,0.00022027,2]
[316022959,1709327450729,-914.2,0.00022027,2]
[316022960,1709327450741,-570.43,0.00022027,2]
[316022961,1709327450753,-629.7,0.00022027,2]
[316022962,1709327450763,-500.0,0.00022027,2]
[316022963,1709327450773,-2928.05,0.00022027,2]
[316022964,1709327450783,-1028.0,0.00022027,2]
[316022965,1709327450793,-582.48,0.00022027,2]
[316022966,1709327450803,-500.0,0.00022027,2]
[316022967,1709327450817,-626.77,0.00022027,2]
[316022968,1709327450827,-500.0,0.00022027,2]
[316022969,1709327450837,-552.37,0.00022027,2]
[316022970,1709327450846,-1008.5,0.00022027,2]
[316022971,1709327450856,-635.13,0.00022027,2]
[316022972,1709327450866,-3808.77,0.00022027,2]
[316022973,1709327450876,-1798.0,0.00022027,2]
[316022974,1709327450885,-500.0,0.00022027,2]
[316022975,1709327450895,-698.46,0.00022027,2]
[316022976,1709327450904,-500.0,0.00022027,2]
[316022977,1709327450915,-2046.85,0.00022027,2]
[316022978,1709327450924,-748.33,0.00022027,2]
[316022979,1709327450934,-500.0,0.00022027,2]
[316022980,1709327450943,-574.95,0.00022027,2]
[316022981,1709327450953,-500.0,0.00022027,2]
[316022982,1709327450963,-963.9,0.00022027,2]
[316022983,1709327450972,-817.49,0.00022027,2]
[316022984,1709327450982,-500.0,0.00022027,2]
[316022985,1709327450992,-641.98,0.00022027,2]
[316022986,1709327451002,-1750.36,0.00022027,2]
[316022987,1709327451012,-500.0,0.00022027,2]
[316022988,1709327451022,-2795.7,0.00022027,2]
[316022989,1709327451031,-544.42,0.00022027,2]
[316022990,1709327451041,-500.0,0.00022027,2]
[316022991,1709327451050,-500.0,0.00022027,2]
[316022992,1709327451062,-1462.57,0.00022027,2]
[316022993,1709327451071,-500.0,0.00022027,2]
[316022994,1709327451081,-500.0,0.00022027,2]
[316022995,1709327451090,-500.0,0.00022027,2]
[316022996,1709327451100,-581.14,0.00022027,2]
[316022997,1709327451110,-500.0,0.00022027,2]
[316022998,1709327451119,-963.96,0.00022027,2]
[316022999,1709327451129,-2872.28,0.00022027,2]
[316023000,1709327451139,-1433.79,0.00022027,2]
[316023001,1709327451149,-500.0,0.00022027,2]
[316023002,1709327451158,-500.0,0.00022027,2]
[316023003,1709327451168,-500.0,0.00022027,2]
[316023004,1709327451178,-668.73,0.00022027,2]
[316023005,1709327451189,-564.73,0.00022027,2]
[316023006,1709327451199,-2954.46,0.00022027,2]
[316023007,1709327451209,-500.0,0.00022027,2]
[316023008,1709327451219,-854.05,0.00022027,2]
[316023009,1709327451229,-500.0,0.00022027,2]
[316023010,1709327451239,-500.0,0.00022027,2]
[316023011,1709327451249,-680.92,0.00022027,2]
[316023012,1709327451258,-500.0,0.00022027,2]
[316023013,1709327451268,-500.0,0.00022027,2]
[316023014,1709327451277,-152.99652097,0.00022027,2]
[316023015,1709327451287,-500.0,0.00022027,2]
[316023016,1709327451297,-500.0,0.00022027,2]
[316023017,1709327451308,-500.0,0.00022027,2]
[316023018,1709327451318,-587.0,0.00022027,2]
[316023019,1709327451328,-500.0,0.00022027,2]
[316023020,1709327451339,-500.0,0.00022027,2]
[316023021,1709327451348,-1483.22,0.00022027,2]
[316023022,1709327451358,-500.0,0.00022027,2]
[316023023,1709327451367,-3296.84,0.00022027,2]
[316023024,1709327451377,-1166.7,0.00022027,2]
[316023025,1709327451387,-992.09,0.00022027,2]
[316023026,1709327451397,-500.0,0.00022027,2]
[316023027,1709327451407,-500.0,0.00022027,2]
[316023028,1709327451416,-500.0,0.00022027,2]
[316023029,1709327451426,-423.73,0.00022027,2]
[316023030,1709327451436,-1520.97,0.00022027,2]
[316023031,1709327451445,-649.61,0.00022027,2]
[316023032,1709327451455,-1316.59,0.00022027,2]
[316023033,1709327451465,-500.0,0.00022027,2]
[316023034,1709327451474,-718.57,0.00022027,2]
[316023035,1709327451483,-1959.03,0.00022027,2]
[316023036,1709327451493,-10169.7,0.00022027,2]
[316023037,1709327451503,-500.0,0.00022027,2]
[316023038,1709327451513,-2072.5,0.00022027,2]
[316023039,1709327451522,-202.58,0.00022027,2]